bitfinex/quotes_SOLUSD_20250815
["timestamp","ask_amount","ask_price","bid_price","bid_amount"]
[1755225408252,4.6547256,193.8,193.78,0.03]
[1755225408654,4.6547256,193.81,193.78,0.03]
[1755225408962,36.79,193.82,193.79,0.3]
[1755225408963,40.7747256,193.82,193.79,0.3]
[1755225409734,36.12,193.82,193.79,0.3]
[1755225409964,36.79,193.82,193.79,5.16001029]
[1755225410142,41.4447256,193.82,193.79,5.16001029]
[1755225411065,41.4447256,193.82,193.78,5.19049127]
[1755225411249,40.7747256,193.82,193.78,5.49049127]
[1755225411765,4.6547256,193.82,193.78,5.49049127]
[1755225411934,137.33338489,193.86,193.8,4.6547256]
[1755225412138,132.67865929,193.86,193.81,4.9547256]
[1755225412535,137.33338489,193.86,193.81,0.3]
[1755225412939,137.33338489,193.86,193.82,5.15942627]
[1755225413260,0.67,193.85,193.82,5.15942627]
[1755225413558,0.67,193.84,193.82,5.15942627]
[1755225414450,5.43338489,193.86,193.81,5.15969248]
[1755225414756,0.77865929,193.86,193.81,5.45969248]
[1755225415263,0.67,193.86,193.82,0.3]
[1755225415462,0.09487618,193.83,193.82,0.3]
[1755225415857,0.09487618,193.83,193.81,5.15969248]
[1755225416051,0.09487618,193.83,193.81,5.45969248]
[1755225416453,0.09487618,193.83,193.82,5.45942627]
[1755225416762,0.09487618,193.83,193.82,10.11415187]
[1755225418742,0.09487618,193.83,193.82,9.81415187]
[1755225419465,0.09487618,193.83,193.82,10.11415187]
[1755225420375,0.10124441,193.84,193.82,10.11415187]
[1755225420551,0.10124441,193.84,193.83,0.3]
[1755225420752,0.10124441,193.84,193.83,10.11388568]
[1755225422460,0.10124441,193.84,193.83,9.81388568]
[1755225423251,0.10124441,193.84,193.83,5.15916008]
[1755225423457,0.80124441,193.84,193.83,5.15916008]
[1755225424355,0.80124441,193.84,193.81,5.15969248]
[1755225424551,0.80124441,193.84,193.81,9.81441808]
[1755225425177,0.10124441,193.84,193.81,9.81441808]
[1755225425471,0.7,193.83,193.81,5.15969248]
[1755225426445,0.10124441,193.84,193.81,5.15969248]
[1755225426646,0.10124441,193.84,193.81,9.81441808]
[1755225426850,0.10124441,193.84,193.83,4.6547256]
[1755225427274,0.10124441,193.84,193.83,4.9547256]
[1755225428455,0.10124441,193.84,193.83,10.11388568]
[1755225428857,0.16923281,193.85,193.83,10.11388568]
[1755225429059,0.09656203,193.86,193.84,41.0747256]
[1755225429270,0.09656203,193.86,193.85,4.6547256]
[1755225429577,0.09656203,193.86,193.85,5.47058838]
[1755225429578,1e-08,193.86,193.85,5.47058838]
[1755225430752,0.15786036,193.87,193.85,5.47058838]
[1755225430753,1e-08,193.87,193.85,10.62921618]
[1755225431064,1e-08,193.87,193.86,4.9547256]
[1755225431778,1e-08,193.88,193.87,26.0]
[1755225431965,0.11115342,193.91,193.87,31.47053516]
[1755225432160,0.11115342,193.91,193.89,4.6547256]
[1755225432764,0.11115342,193.91,193.89,9.81228916]
[1755225432983,0.06,193.92,193.9,4.6547256]
[1755225433188,0.06,193.92,193.91,4.6547256]
[1755225434189,0.06,193.92,193.89,5.15756356]
[1755225434489,0.06,193.92,193.9,4.6547256]
[1755225434886,0.06,193.92,193.91,5.15703161]
[1755225435384,0.16231259,193.92,193.91,5.15703161]
[1755225435587,0.16231259,193.92,193.91,9.81175721]
[1755225436161,0.09862096,193.93,193.91,10.11175721]
[1755225436374,0.16893376,193.95,193.92,41.57040216]
[1755225436577,0.16893376,193.95,193.94,4.6547256]
[1755225437372,0.16893376,193.95,193.94,9.81095948]
[1755225438286,0.16893376,193.95,193.94,5.15623388]
[1755225438490,0.86893376,193.95,193.94,5.15623388]
[1755225439577,0.86893376,193.95,193.93,5.15649976]
[1755225439769,0.7,193.94,193.93,5.15649976]
[1755225441471,0.16893376,193.95,193.93,9.81122536]
[1755225441671,0.16893376,193.95,193.94,4.6547256]
[1755225442791,0.16893376,193.95,193.94,9.81095948]
[1755225446409,0.16893376,193.95,193.94,10.11095948]
[1755225446988,0.16893376,193.95,193.94,4.6547256]
[1755225447883,0.16893376,193.95,193.93,5.15649976]
[1755225448114,0.16893376,193.95,193.94,4.6547256]
[1755225448603,0.86893376,193.95,193.93,9.81122536]
[1755225448816,0.16893376,193.95,193.93,5.15649976]
[1755225448982,0.7,193.94,193.93,5.15649976]
[1755225449182,0.7,193.94,193.93,41.25649976]
[1755225450201,0.7,193.94,193.93,5.15649976]
[1755225450408,0.7,193.94,193.93,41.25649976]
[1755225455406,0.79849704,193.94,193.93,41.25649976]
[1755225461591,4.24722185,193.94,193.93,41.25649976]
[1755225461822,0.79849704,193.94,193.93,41.25649976]
[1755225463090,0.09849704,193.94,193.93,41.25649976]
[1755225465406,0.09849704,193.94,193.93,45.91122536]
[1755225466920,0.17051141,193.95,193.93,46.21122536]
[1755225467135,0.17051141,193.95,193.94,0.3]
[1755225467338,0.17051141,193.95,193.94,4.6547256]
[1755225467634,0.17051141,193.95,193.94,4.9547256]
[1755225467995,0.17024968,193.96,193.94,5.47034898]
[1755225468197,0.17024968,193.96,193.95,40.7347256]
[1755225468718,0.17024968,193.96,193.95,46.19069363]
[1755225470201,0.30422942,193.97,193.95,46.19069363]
[1755225470527,0.30422942,193.97,193.96,4.6547256]
[1755225471027,0.30422942,193.97,193.96,9.8104278]
[1755225471223,1e-08,193.97,193.96,9.8104278]
[1755225471538,1e-08,193.99,193.96,12.69099402]
[1755225471833,1e-08,193.99,193.98,4.6547256]
[1755225473408,1e-08,193.99,193.98,9.80989623]
[1755225475235,0.06,194.0,193.98,9.80989623]
[1755225475412,0.77943791,193.99,193.98,5.15517063]
[1755225475610,0.77943791,193.99,193.98,41.23517063]
[1755225476109,0.77943791,193.99,193.98,5.15517063]
[1755225476350,4.24525035,193.99,193.98,41.23517063]
[1755225477007,0.77943791,193.99,193.98,41.23517063]
[1755225477418,4.24526176,193.99,193.98,41.23517063]
[1755225478035,0.77943791,193.99,193.98,41.23517063]
[1755225478234,0.10943791,193.99,193.98,41.23517063]
[1755225479139,0.30487692,194.01,194.0,26.0]
[1755225479329,0.30811589,194.08,194.04,26.0]
[1755225479636,0.97811589,194.08,194.07,26.0]
[1755225479827,0.97811589,194.08,194.07,36.08]
[1755225480228,0.97811589,194.08,194.07,41.23277992]
[1755225480620,5.63284149,194.08,194.07,41.23277992]
[1755225480821,9.0958577,194.08,194.07,36.08]
[1755225481017,9.0958577,194.08,194.06,41.23298853]
[1755225481224,4.6547256,194.07,194.06,41.23298853]
[1755225481445,5.3747256,194.07,194.06,41.23298853]
[1755225481745,0.72,194.07,194.06,41.23298853]
[1755225484235,5.3747256,194.07,194.03,5.15384218]
[1755225484433,5.3747256,194.06,194.04,36.08]
[1755225484634,5.3747256,194.05,194.04,36.08]
[1755225485217,0.72,194.05,194.04,36.08]
[1755225485422,5.3747256,194.05,194.04,36.08]
[1755225486146,5.3747256,194.05,194.03,41.23384218]
[1755225486330,5.3747256,194.04,194.03,41.23384218]
[1755225486534,4.6547256,194.04,194.03,41.23384218]
[1755225486728,5.3747256,194.04,194.03,41.23384218]
[1755225487048,5.3747256,194.04,194.03,5.15384218]
[1755225487249,5.3747256,194.04,194.02,41.23404943]
[1755225487436,5.3747256,194.03,194.02,41.23404943]
[1755225487754,0.72,194.03,194.02,5.15404943]
[1755225488924,5.3747256,194.03,194.02,5.15404943]
[1755225489450,5.3747256,194.03,194.01,36.08]
[1755225489644,0.06,194.07,194.01,41.23437348]
[1755225489645,5.3747256,194.02,194.01,41.23437348]
[1755225489852,5.3747256,194.02,194.01,36.08]
[1755225490024,5.3747256,194.02,194.0,5.15460562]
[1755225490025,5.3747256,194.02,194.0,41.21460562]
[1755225490224,5.3747256,194.01,194.0,41.21460562]
[1755225490638,5.3747256,194.01,194.0,5.15460562]
[1755225492146,4.6547256,194.01,194.0,5.15460562]
[1755225492329,5.3747256,194.01,194.0,5.15460562]
[1755225494033,5.3747256,194.01,193.99,5.15484897]
[1755225494358,5.3747256,194.0,193.99,5.15484897]
[1755225495051,0.72,194.0,193.98,5.18517063]
[1755225495351,4.6547256,194.02,193.98,5.18517063]
[1755225495535,0.09773162,194.0,193.99,36.08]
[1755225496157,0.09773162,194.0,193.99,41.23490489]
[1755225496959,0.81773162,194.0,193.99,41.23490489]
[1755225499857,5.47245722,194.0,193.99,41.23490489]
[1755225500266,0.81773162,194.0,193.99,41.23490489]
[1755225500450,0.09773162,194.0,193.99,41.23490489]
[1755225508871,0.09512354,194.01,193.99,45.88963049]
[1755225510340,0.09512354,194.01,194.0,9.80936477]
[1755225510538,0.09512354,194.01,194.0,5.15463917]
[1755225512266,0.09512354,194.01,194.0,41.21463917]
[1755225513082,0.79512354,194.01,194.0,41.21463917]
[1755225513243,5.44984914,194.01,194.0,41.21463917]
[1755225513891,0.79512354,194.01,194.0,41.21463917]
[1755225515160,0.7,194.01,194.0,41.21463917]
[1755225515560,0.81217504,194.01,194.0,41.21463917]
[1755225516856,0.11217504,194.01,194.0,41.21463917]
[1755225517979,0.81217504,194.01,194.0,41.21463917]
[1755225518757,8.93582038,194.01,193.98,0.03]
[1755225518954,0.81217504,194.01,193.99,36.06]
[1755225519178,0.81217504,194.01,193.98,36.09]
[1755225519475,3.46847419,194.0,193.98,36.09]
[1755225519683,0.7,193.99,193.98,36.09]
[1755225520089,5.3547256,193.99,193.98,36.09]
[1755225520859,5.3547256,193.99,193.98,41.24517063]
[1755225521081,0.7,193.99,193.98,41.24517063]
[1755225523186,0.11217504,194.01,193.98,41.24517063]
[1755225523484,3.46894948,194.0,193.98,41.24517063]
[1755225523682,0.11217504,194.01,193.98,45.89989623]
[1755225524584,1e-08,194.01,194.0,4.6547256]
[1755225524879,1e-08,194.01,194.0,40.7147256]
[1755225526484,1e-08,194.01,194.0,45.86936477]
[1755225529589,1e-08,194.01,194.0,41.21463917]
[1755225529792,1e-08,194.01,194.0,45.86936477]
[1755225529987,0.70000001,194.01,194.0,41.21463917]
[1755225530660,4.17198898,194.01,194.0,41.21463917]
[1755225531264,3.47198898,194.01,194.0,41.21463917]
[1755225531695,4.17198898,194.01,194.0,41.21463917]
[1755225531863,4.17198898,194.01,193.98,0.03]
[1755225532064,4.17176724,194.0,193.99,36.06]
[1755225532492,4.1717389,194.0,193.99,36.06]
[1755225533066,4.1717389,194.0,193.99,41.21490489]
[1755225533793,0.7,194.0,193.99,41.21490489]
[1755225534092,1e-08,194.01,193.99,41.21490489]
[1755225534274,0.70000001,194.01,193.99,41.21490489]
[1755225534876,0.7,194.0,193.99,41.21490489]
[1755225535080,4.1718592,194.0,193.99,41.21490489]
[1755225535274,8.8265848,194.0,193.99,41.21490489]
[1755225535473,8.92050609,194.0,193.99,41.21490489]
[1755225536463,4.26578049,194.0,193.99,41.21490489]
[1755225537789,3.56578049,194.0,193.99,41.21490489]
[1755225539189,4.26578049,194.0,193.99,41.21490489]
[1755225541773,8.92050609,194.0,193.99,41.21490489]
[1755225542673,8.92050609,194.0,193.98,0.03]
[1755225542889,12.64448564,193.99,193.97,0.03]
[1755225543089,11.98448564,193.98,193.97,0.03]
[1755225543292,12.64448564,193.98,193.97,0.03]
[1755225545277,8.7865848,193.98,193.97,0.03]
[1755225545693,12.63685854,193.98,193.97,0.03]
[1755225548180,8.7865848,193.98,193.97,0.03]
[1755225548581,12.6322371,193.98,193.97,0.03]
[1755225553413,32.8936233,193.98,193.96,0.03]
[1755225553575,11.9722371,193.97,193.95,0.03]
[1755225553773,16.29364212,193.96,193.95,0.03]
[1755225554000,16.95364212,193.96,193.95,0.03]
[1755225554183,52.10934432,193.96,193.95,0.03]
[1755225554502,67.21555989,193.96,193.95,0.03]
[1755225555208,67.21094208,193.96,193.95,0.03]
[1755225555382,103.29094208,193.96,193.95,0.03]
[1755225555585,103.39670248,193.96,193.95,0.03]
[1755225557080,98.74197688,193.96,193.95,0.03]
[1755225557283,15.10621557,193.95,193.93,0.03]
[1755225557484,27.07845267,193.94,193.9,0.03]
[1755225557807,24.07369779,193.92,193.9,0.03]
[1755225558007,67.47120929,193.92,193.9,0.03]
[1755225558309,15.10621557,193.91,193.9,0.03]
[1755225558508,27.73845267,193.91,193.9,0.03]
[1755225558683,57.73845267,193.91,193.9,0.03]
[1755225559419,62.89548428,193.91,193.9,0.03]
[1755225561292,59.04983198,193.91,193.9,0.03]
[1755225563495,190.94983198,193.91,193.9,0.03]
[1755225565101,160.94983198,193.91,193.9,0.03]
[1755225565510,164.76758394,193.91,193.9,0.03]
[1755225565808,160.94983198,193.91,193.9,0.03]
[1755225566010,3.4718592,193.91,193.9,0.03]
[1755225566222,36.08,193.92,193.9,0.03]
[1755225566515,8.09025511,193.91,193.9,0.03]
[1755225567794,8.75025511,193.91,193.9,0.03]
[1755225570417,8.09025511,193.91,193.9,0.03]
[1755225570919,8.77025511,193.91,193.9,0.03]
[1755225572620,4.11552951,193.91,193.9,0.03]
[1755225572803,8.09025511,193.91,193.9,0.03]
[1755225573407,38.09025511,193.91,193.9,0.03]
[1755225574722,33.43552951,193.91,193.9,0.03]
[1755225574924,4.6547256,193.91,193.9,0.03]
[1755225575635,4.76592142,193.91,193.9,0.03]
[1755225579026,0.11119582,193.91,193.9,0.09]
[1755225580432,0.11119582,193.91,193.9,5.24729757]
[1755225580932,0.11119582,193.91,193.9,5.18729757]
[1755225582224,0.11119582,193.91,193.9,0.03]
[1755225583245,0.11119582,193.91,193.9,0.09]
[1755225584130,0.11119582,193.91,193.9,4.7447256]
[1755225584343,0.11119582,193.91,193.9,9.90202317]
[1755225585218,0.11119582,193.91,193.9,5.24729757]
[1755225585533,0.11119582,193.91,193.9,9.90202317]
[1755225586848,0.09458751,193.92,193.9,9.90202317]
[1755225587051,0.09458751,193.92,193.91,4.6547256]
[1755225587348,1e-08,193.92,193.91,10.38746037]
[1755225587555,1e-08,193.95,193.91,49.2800394]
[1755225587763,1e-08,193.95,193.94,4.6547256]
[1755225588057,1e-08,193.95,193.93,4.6547256]
[1755225588221,1e-08,193.95,193.92,4.6547256]
[1755225588991,1e-08,193.95,193.91,44.04961064]
[1755225589127,0.68000001,193.95,193.91,44.04961064]
[1755225589452,0.68,193.94,193.91,18.04961064]
[1755225590047,1e-08,193.95,193.92,0.06]
[1755225590256,1e-08,193.95,193.94,4.6547256]
[1755225590660,1e-08,193.95,193.94,4.7147256]
[1755225590842,1e-08,193.95,193.94,4.6547256]
[1755225591452,1e-08,193.95,193.94,9.81095948]
[1755225591653,1e-08,193.95,193.94,5.15623388]
[1755225592358,0.68000001,193.95,193.94,5.15623388]
[1755225593073,1e-08,193.95,193.94,5.15623388]
[1755225593245,0.68000001,193.95,193.94,5.15623388]
[1755225594063,0.68000001,193.95,193.91,18.04961064]
[1755225594642,0.68,193.94,193.91,18.04961064]
[1755225595669,0.09319801,193.92,193.91,18.04961064]
[1755225596657,0.09614792,193.93,193.91,18.04961064]
[1755225596658,0.09614792,193.93,193.91,22.76433624]
[1755225596877,0.09614792,193.93,193.92,4.7147256]
[1755225597244,0.09614792,193.93,193.92,4.6547256]
[1755225598271,0.09614792,193.93,193.92,9.81149127]
[1755225599771,0.09614792,193.93,193.92,5.15676567]
[1755225601769,0.75614792,193.93,193.92,5.15676567]
[1755225601944,5.41087352,193.93,193.91,5.15699545]
[1755225602147,5.3147256,193.92,193.91,5.15699545]
[1755225604168,0.66,193.92,193.9,5.18729757]
[1755225604348,0.66,193.91,193.9,5.18729757]
[1755225604967,0.75614792,193.93,193.9,5.18729757]
[1755225605172,0.66,193.92,193.9,5.18729757]
[1755225605759,5.3147256,193.92,193.9,5.18729757]
[1755225605959,0.66,193.91,193.9,5.18729757]
[1755225606156,0.09614792,193.93,193.9,9.84202317]
[1755225606362,0.09614792,193.93,193.9,9.90202317]
[1755225606674,0.09614792,193.93,193.9,9.84202317]
[1755225608369,0.75614792,193.93,193.9,5.18729757]
[1755225608576,0.66,193.92,193.9,5.18729757]
[1755225609476,0.66,193.91,193.9,5.18729757]
[1755225610283,0.66,193.91,193.89,36.15]
[1755225610284,8.77457127,193.91,193.89,0.03]
[1755225610468,0.66,193.91,193.89,0.03]
[1755225610859,0.66,193.9,193.89,0.03]
[1755225611257,8.7747495,193.9,193.89,0.03]
[1755225613088,4.1200239,193.9,193.89,0.03]
[1755225615685,4.2142375,193.9,193.89,0.03]
[1755225617883,8.8689631,193.9,193.89,0.03]
[1755225619279,4.2142375,193.9,193.89,0.03]
[1755225620152,8.8689631,193.9,193.89,0.03]
[1755225621356,3.5542375,193.9,193.89,0.03]
[1755225621571,4.2142375,193.9,193.89,0.03]
[1755225621773,3.5542375,193.9,193.89,0.03]
[1755225622372,0.0942136,193.9,193.89,0.03]
[1755225622565,3.5560834,193.9,193.89,0.03]
[1755225622770,0.0942136,193.9,193.89,0.03]
[1755225623959,0.0942136,193.9,193.89,4.6847256]
[1755225624881,0.0942136,193.9,193.89,40.7847256]
[1755225625282,0.0942136,193.9,193.89,36.13]
[1755225625992,0.0942136,193.9,193.89,41.28756356]
[1755225627876,0.0942136,193.9,193.89,45.94228916]
[1755225628371,0.0942136,193.9,193.89,41.28756356]
[1755225628571,0.7542136,193.9,193.89,41.28756356]
[1755225629301,0.0942136,193.9,193.89,41.28756356]
[1755225631095,1e-08,193.9,193.89,46.54804551]
[1755225631405,1e-08,193.91,193.89,46.54804551]
[1755225631566,1e-08,193.91,193.9,4.7447256]
[1755225632489,1e-08,193.91,193.9,9.90202317]
[1755225635317,0.15563343,193.93,193.92,26.0]
[1755225635318,0.06,193.93,193.92,26.0]
[1755225635472,0.06,193.93,193.92,66.7347256]
[1755225635674,0.15643141,193.93,193.92,66.7347256]
[1755225636904,0.15643141,193.93,193.92,71.89149127]
[1755225637099,0.81643141,193.93,193.92,71.89149127]
[1755225637797,0.81643141,193.93,193.92,67.23676567]
[1755225638000,0.81643141,193.93,193.92,71.89149127]
[1755225638195,0.81643141,193.93,193.92,67.23676567]
[1755225638375,0.81643141,193.93,193.92,71.89149127]
[1755225639907,0.81643141,193.93,193.92,41.23676567]
[1755225640406,8.93439977,193.93,193.9,5.15706639]
[1755225640607,4.6547256,193.91,193.9,36.08]
[1755225640790,8.77796836,193.91,193.9,36.08]
[1755225641995,4.12324276,193.91,193.9,36.08]
[1755225642499,8.77796836,193.91,193.9,36.08]
[1755225643491,8.77796836,193.91,193.9,41.23729757]
[1755225643704,8.77796836,193.91,193.9,36.08]
[1755225647508,4.12324276,193.91,193.9,36.08]
[1755225647696,8.77796836,193.91,193.9,36.08]
[1755225649114,4.12324276,193.91,193.9,36.08]
[1755225649919,3.46324276,193.91,193.9,36.08]
[1755225650104,0.15643141,193.93,193.9,45.98202317]
[1755225650304,0.15643141,193.93,193.91,4.6547256]
[1755225650538,0.15643141,193.93,193.92,40.7547256]
[1755225652308,0.15643141,193.93,193.92,41.25676567]
[1755225652629,0.81643141,193.93,193.92,45.91149127]
[1755225653010,0.81643141,193.93,193.92,41.25676567]
[1755225654054,4.28141452,193.93,193.92,36.1]
[1755225654718,8.93614012,193.93,193.92,36.1]
[1755225654914,8.93614012,193.93,193.89,5.18753305]
[1755225655117,8.77970871,193.92,193.9,36.08]
[1755225655429,4.12498311,193.91,193.9,36.08]
[1755225655630,4.23012268,193.91,193.9,36.08]
[1755225656101,8.88484828,193.91,193.9,36.08]
[1755225656305,8.88484828,193.91,193.89,36.13]
[1755225656548,8.77970871,193.9,193.89,0.03]
[1755225658038,22.44157443,193.9,193.89,0.03]
[1755225658203,4.6547256,193.89,193.88,0.03]
[1755225658407,11.96955126,193.89,193.88,0.03]
[1755225658609,12.62955126,193.89,193.88,0.03]
[1755225660216,32.89333039,193.89,193.88,0.03]
[1755225660420,37.2062742,193.89,193.88,0.03]
[1755225661415,32.89333039,193.89,193.88,0.03]
[1755225661717,15.10621557,193.88,193.87,0.03]
[1755225662037,27.74576683,193.88,193.87,0.03]
[1755225662537,62.05871064,193.88,193.86,0.03]
[1755225662735,27.74576683,193.87,193.86,0.03]
[1755225663614,62.90386246,193.87,193.86,0.03]
[1755225664045,194.80386246,193.87,193.86,0.03]
[1755225664935,199.00169792,193.87,193.81,0.03]
[1755225665134,19.76094117,193.85,193.81,0.03]
[1755225665443,23.22592428,193.85,193.81,0.03]
[1755225665738,29.05455208,193.85,193.81,0.03]
[1755225666123,59.05455208,193.85,193.81,0.03]
[1755225668809,4.6547256,193.82,193.81,0.03]
[1755225669008,44.23970871,193.82,193.81,0.03]
[1755225669233,44.90970871,193.82,193.81,0.03]
[1755225669726,74.90970871,193.82,193.81,0.03]
[1755225670122,80.06913498,193.82,193.81,0.03]
[1755225671236,76.60415187,193.82,193.81,0.03]
[1755225672627,76.60415187,193.82,193.77,0.03]
[1755225672628,15.10621557,193.81,193.77,0.03]
[1755225672944,44.23635495,193.8,193.77,0.03]
[1755225673333,74.90635495,193.8,193.77,0.03]
[1755225673639,15.10621557,193.79,193.77,0.03]
[1755225673937,23.87257052,193.79,193.77,0.03]
[1755225674138,28.3627955,193.79,193.77,0.03]
[1755225674315,59.0327955,193.79,193.77,0.03]
[1755225674516,30.0,193.79,193.77,0.03]
[1755225674717,35.3247256,193.79,193.77,0.03]
[1755225674918,62.84506214,193.79,193.77,0.03]
[1755225675133,15.10621557,193.77,193.75,0.03]
[1755225675343,44.27105976,193.76,193.75,0.03]
[1755225675642,94.70200093,193.76,193.75,0.03]
[1755225676245,99.86302487,193.76,193.75,0.03]
[1755225678049,69.86302487,193.76,193.75,0.03]
[1755225679124,71.93175887,193.76,193.75,0.03]
[1755225679846,69.86302487,193.76,193.75,0.03]
[1755225680028,71.93175787,193.76,193.75,0.03]
[1755225680428,69.86302487,193.76,193.75,0.03]
[1755225681140,99.86302487,193.76,193.75,0.03]
[1755225681340,103.66760424,193.76,193.75,0.03]
[1755225681540,99.86302487,193.76,193.75,0.03]
[1755225681738,69.86302487,193.76,193.75,0.03]
[1755225681930,73.6674769,193.76,193.75,0.03]
[1755225682828,4.6547256,193.74,193.73,0.03]
[1755225683022,176.15105976,193.74,193.73,0.03]
[1755225683222,176.82105976,193.74,193.73,0.03]
[1755225684622,211.98261648,193.74,193.73,0.03]
[1755225686124,230.892497,193.74,193.64,0.12]
[1755225686325,4.6547256,193.65,193.64,0.12]
[1755225686548,4.6547256,193.66,193.64,0.12]
[1755225686746,4.6547256,193.65,193.64,0.12]
[1755225687125,4.6547256,193.65,193.61,10.3293291]
[1755225687325,4.6547256,193.63,193.62,0.12]
[1755225688329,36.18,193.66,193.62,0.12]
[1755225688557,4.6547256,193.65,193.62,0.12]
[1755225689137,4.6547256,193.64,193.62,0.12]
[1755225690245,36.18,193.66,193.62,0.12]
[1755225690452,4.6547256,193.65,193.62,0.12]
[1755225690772,36.18,193.66,193.63,0.12]
[1755225690947,4.6547256,193.65,193.62,5.1647361]
[1755225691137,36.18,193.66,193.63,0.12]
[1755225691535,131.9,193.71,193.64,0.12]
[1755225691740,4.6547256,193.66,193.64,0.12]
[1755225692053,4.6547256,193.67,193.62,5.2847361]
[1755225692242,4.6547256,193.67,193.63,0.12]
[1755225692446,4.6547256,193.66,193.63,5.28426847]
[1755225692749,4.6547256,193.67,193.64,0.12]
[1755225692949,4.6547256,193.67,193.65,0.12]
[1755225693450,4.6547256,193.67,193.63,5.16426847]
[1755225693654,4.6547256,193.67,193.63,5.28426847]
[1755225694235,4.6547256,193.67,193.64,0.12]
[1755225694435,4.6547256,193.67,193.64,5.28416537]
[1755225695156,4.6547256,193.66,193.64,5.28416537]
[1755225695449,4.6547256,193.67,193.62,5.28458199]
[1755225695664,0.09301362,193.65,193.62,5.28458199]
[1755225695840,0.09301362,193.65,193.63,0.12]
[1755225696040,0.09301362,193.65,193.62,5.16458199]
[1755225696541,0.09301362,193.65,193.63,5.284388]
[1755225697232,0.09301362,193.65,193.61,5.16502246]
[1755225697436,0.09301362,193.65,193.62,0.12]
[1755225697759,0.09301362,193.65,193.55,41.45454262]
[1755225697760,4.6547256,193.63,193.56,0.03]
[1755225697939,4.6547256,193.61,193.56,0.03]
[1755225698141,4.6547256,193.61,193.57,5.1660545]
[1755225698441,36.16,193.63,193.58,4.7747256]
[1755225698648,36.16,193.63,193.59,0.12]
[1755225699252,4.74773922,193.65,193.6,0.12]
[1755225699449,3.42759304,193.64,193.6,0.12]
[1755225699658,4.74773922,193.65,193.6,0.12]
[1755225699856,5.45773922,193.65,193.6,0.12]
[1755225700161,4.74773922,193.65,193.6,0.12]
[1755225700348,3.42994981,193.64,193.61,5.16502246]
[1755225700657,0.09301362,193.65,193.61,5.28502246]
[1755225700849,3.4295909,193.64,193.61,5.28502246]
[1755225701049,0.09301362,193.65,193.61,5.28502246]
[1755225701362,3.4280631,193.64,193.61,5.28502246]
[1755225701539,0.09301362,193.65,193.61,9.81974806]
[1755225701876,0.09301362,193.65,193.62,4.7747256]
[1755225702047,0.09301362,193.65,193.62,0.12]
[1755225702247,0.09301362,193.65,193.63,4.7747256]
[1755225703342,0.09301362,193.65,193.61,9.81974806]
[1755225703952,0.80301362,193.65,193.61,9.81974806]
[1755225704448,0.09301362,193.65,193.61,9.93974806]
[1755225705446,0.09301362,193.65,193.62,4.7747256]
[1755225705881,0.09301362,193.65,193.63,5.28448897]
[1755225706682,0.09301362,193.65,193.63,5.16448897]
[1755225706856,0.80301362,193.65,193.6,9.82001485]
[1755225707176,0.80301362,193.65,193.6,5.16528925]
[1755225707177,0.71,193.64,193.6,5.16528925]
[1755225711151,3.44602668,193.63,193.6,5.16528925]
[1755225711380,0.71,193.64,193.6,5.16528925]
[1755225711579,4.74773922,193.65,193.6,5.16528925]
[1755225711890,4.6547256,193.62,193.59,0.03]
[1755225712263,4.15691775,193.61,193.59,0.03]
[1755225712458,0.71,193.61,193.59,0.03]
[1755225712657,5.3647256,193.63,193.59,0.03]
[1755225712857,3.4467732,193.62,193.59,0.03]
[1755225713066,3.4467732,193.61,193.59,0.03]
[1755225713245,0.71,193.62,193.59,0.03]
[1755225713450,4.15850792,193.61,193.59,0.03]
[1755225713655,0.71,193.61,193.59,0.03]
[1755225713858,0.71,193.62,193.59,0.03]
[1755225714070,3.44850792,193.61,193.59,0.03]
[1755225714258,0.71,193.61,193.59,0.03]
[1755225714457,5.3647256,193.63,193.59,0.03]
[1755225714656,36.27301362,193.65,193.59,0.03]
[1755225714657,8.81410868,193.62,193.59,0.03]
[1755225714857,3.44938308,193.61,193.59,0.03]
[1755225715060,0.71,193.61,193.59,0.03]
[1755225715278,4.16074671,193.6,193.59,0.03]
[1755225715588,0.82281196,193.6,193.59,0.03]
[1755225718365,0.11281196,193.6,193.59,0.03]
[1755225719961,0.11281196,193.6,193.59,4.8047256]
[1755225720299,0.11281196,193.6,193.59,6.8738876]